bitfinex/quotes_SOLUSD_20260311
["timestamp","ask_amount","ask_price","bid_price","bid_amount"]
[1773193537305,4.16612369,85.93,85.893,1.78037081]
[1773193537895,15.80358285,85.93,85.895,1.78037081]
[1773193540814,4.16612369,85.93,85.897,1.78037081]
[1773193544710,11.63616053,85.939,85.899,1.78037081]
[1773193544910,4.16612369,85.93,85.899,1.78037081]
[1773193547020,4.16612369,85.92,85.891,1.78037081]
[1773193547320,4.16612369,85.91,85.892,11.64252782]
[1773193547616,4.16612369,85.92,85.892,11.64252782]
[1773193549218,11.63886916,85.919,85.891,1.78037081]
[1773193549624,11.63886916,85.919,85.891,13.4230012]
[1773193549825,11.63886916,85.919,85.892,1.78037081]
[1773193551129,11.63886916,85.919,85.893,11.64239227]
[1773193551328,11.63886916,85.919,85.893,13.42276308]
[1773193553724,4.16612369,85.9,85.872,1.78037081]
[1773193555917,4.16612369,85.9,85.873,11.64510381]
[1773193556122,4.16612369,85.9,85.874,1.78037081]
[1773193559435,11.64041087,85.908,85.876,1.78037081]
[1773193559633,4.16612369,85.92,85.881,1.78037081]
[1773193559825,11.6389388,85.919,85.881,1.78037081]
[1773193560541,4.16612369,85.9,85.876,1.78037081]
[1773193562239,11.64157906,85.899,85.876,1.78037081]
[1773193567741,11.64157906,85.899,85.878,1.78037081]
[1773193570248,4.16612369,85.91,85.879,11.64429022]
[1773193570440,4.16612369,85.91,85.88,1.78037081]
[1773193571738,11.64022395,85.909,85.88,1.78037081]
[1773193573550,4.16583474,85.9,85.88,1.78037081]
[1773193574633,15.80741025,85.9,85.88,1.78037081]
[1773193576747,4.16583474,85.9,85.882,1.78037081]
[1773193580656,11.64157906,85.899,85.882,1.78037081]
[1773193582747,4.16583474,85.9,85.883,11.64374788]
[1773193582941,4.16583474,85.9,85.884,1.78037081]
[1773193587750,4.16583474,85.91,85.886,1.78037081]
[1773193588054,11.63886916,85.919,85.886,1.78037081]
[1773193589048,4.16583474,85.91,85.886,1.78037081]
[1773193592350,11.64022395,85.909,85.886,1.78037081]
[1773193592543,11.64022395,85.909,85.888,1.78037081]
[1773193592743,4.16583474,85.91,85.888,1.78037081]
[1773193592944,11.64022395,85.909,85.888,1.78037081]
[1773193599952,4.16583474,85.9,85.888,1.78037081]
[1773193600158,4.16583474,85.9,85.884,1.78037081]
[1773193600539,4.16583474,85.89,85.872,1.78037081]
[1773193600742,1.75502193,85.879,85.857,11.64717031]
[1773193600958,11.64307004,85.888,85.839,29.1239565]
[1773193600959,1.75502193,85.869,85.839,29.1239565]
[1773193601557,4.16583474,85.87,85.839,29.1239565]
[1773193601876,1.75502193,85.879,85.84,4.16583474]
[1773193602764,1.75502193,85.879,85.841,1.6862371]
[1773193604059,1.75502193,85.889,85.851,1.6862371]
[1773193604259,5.92085667,85.88,85.851,1.6862371]
[1773193605961,5.92085667,85.88,85.853,1.6862371]
[1773193607765,4.16583474,85.89,85.854,1.6862371]
[1773193607964,4.16583474,85.89,85.856,1.6862371]
[1773193608355,5.92085667,85.89,85.856,1.6862371]
[1773193609872,5.92085667,85.89,85.857,11.64727395]
[1773193610073,5.92085667,85.89,85.858,1.72507651]
[1773193611875,5.92085667,85.89,85.86,1.72507651]
[1773193612472,1.74841933,85.889,85.86,1.72507651]
[1773193613870,1.74841933,85.889,85.861,11.64673134]
[1773193614072,1.74841933,85.889,85.862,1.72507651]
[1773193616076,1.74841933,85.889,85.863,11.64646005]
[1773193616077,1.74841933,85.888,85.863,11.64646005]
[1773193616282,1.74841933,85.888,85.864,1.72507651]
[1773193619680,1.74841933,85.888,85.866,1.72507651]
[1773193620475,1.74841933,85.879,85.865,11.64618878]
[1773193620863,1.74841933,85.879,85.858,1.72507651]
[1773193621264,1.74841933,85.879,85.858,13.37210274]
[1773193621666,1.74841933,85.879,85.859,1.72507651]
[1773193622273,4.16583474,85.89,85.861,1.72507651]
[1773193622772,5.91425407,85.89,85.861,1.72507651]
[1773193624173,1.74841933,85.888,85.863,1.72507651]
[1773193624573,1.74841933,85.879,85.862,11.6465957]
[1773193626168,1.74841933,85.879,85.86,11.64681707]
[1773193626583,4.16583474,85.87,85.842,1.72507651]
[1773193626768,1.74841933,85.871,85.843,1.72507651]
[1773193627967,1.74841933,85.871,85.845,1.72507651]
[1773193628202,1.74841933,85.869,85.845,1.72507651]
[1773193630283,1.74841933,85.869,85.846,11.64876639]
[1773193630489,1.74841933,85.869,85.846,13.3738429]
[1773193630675,1.74841933,85.869,85.846,11.64876639]
[1773193630989,1.74841933,85.869,85.847,1.72507651]
[1773193633897,1.74841933,85.869,85.849,1.72507651]
[1773193638396,1.74841933,85.898,85.851,1.72507651]
[1773193638695,4.16919192,85.89,85.851,1.72507651]
[1773193638881,11.64130801,85.901,85.85,44.93797467]
[1773193638882,1.74841933,85.895,85.861,1.72507651]
[1773193639690,4.16919192,85.89,85.862,11.6465957]
[1773193639998,4.16919192,85.89,85.863,1.60659155]
[1773193642192,4.16919192,85.9,85.865,1.60659155]
[1773193642500,1.63528594,85.898,85.865,1.60659155]
[1773193643308,8.04445387,85.902,85.871,1.60659155]
[1773193643520,8.04445387,85.902,85.881,1.60659155]
[1773193644206,8.04445387,85.902,85.883,1.60659155]
[1773193645997,8.04445387,85.902,85.885,1.60659155]
[1773193647915,8.04445387,85.902,85.887,1.60659155]
[1773193649818,1.63528594,85.919,85.891,1.60659155]
[1773193650021,1.63528594,85.919,85.893,1.60659155]
[1773193652911,1.63528594,85.919,85.895,1.60659155]
[1773193655710,1.63528594,85.919,85.897,1.60659155]
[1773193655909,1.63528594,85.929,85.901,1.60659155]
[1773193656210,1.63528594,85.929,85.897,1.67627807]
[1773193656621,1.74633175,85.928,85.901,1.67627807]
[1773193657222,1.74633175,85.939,85.901,1.67627807]
[1773193657925,1.74633175,85.938,85.903,1.67627807]
[1773193659819,11.83605872,85.94,85.904,11.64090147]
[1773193660021,11.83605872,85.94,85.905,1.67627807]
[1773193660229,13.58239047,85.94,85.905,1.67627807]
[1773193660527,1.74633175,85.939,85.905,1.67627807]
[1773193661028,0.2,85.94,85.92,4.16919192]
[1773193661213,0.2,85.94,85.921,1.67627807]
[1773193662026,0.2,85.94,85.904,40.74315514]
[1773193662027,0.2,85.94,85.923,1.67627807]
[1773193662736,8.05577244,85.948,85.931,1.67627807]
[1773193664024,0.2,85.96,85.941,1.67627807]
[1773193664733,1.74633175,85.959,85.933,1.67627807]
[1773193665031,0.2,85.96,85.933,1.67627807]
[1773193665417,0.2,85.96,85.941,1.67627807]
[1773193666133,0.2,85.96,85.943,1.67627807]
[1773193667926,0.2,85.97,85.943,1.67627807]
[1773193668132,0.2,85.97,85.945,1.67627807]
[1773193668935,13.57833755,85.97,85.945,1.67627807]
[1773193669138,1.74633175,85.959,85.92,4.16919192]
[1773193669436,1.74633175,85.959,85.93,4.16919192]
[1773193670337,1.74633175,85.959,85.931,11.63724383]
[1773193671029,1.74633175,85.959,85.932,1.67064635]
[1773193671233,1.24903457,85.939,85.906,1.67064635]
[1773193672423,1.24903457,85.939,85.908,1.67064635]
[1773193674340,1.24903457,85.939,85.909,11.64022395]
[1773193674541,1.24903457,85.939,85.91,1.67064635]
[1773193675743,1.24903457,85.939,85.912,1.67064635]
[1773193676843,1.24903457,85.939,85.914,1.67064635]
[1773193678736,1.24794127,85.937,85.914,1.67064635]
[1773193679843,11.63656674,85.936,85.915,11.63941104]
[1773193680036,1.24780409,85.935,85.915,11.63941104]
[1773193680340,1.24780409,85.935,85.9,4.16919192]
[1773193680341,1.24780409,85.935,85.909,1.67064635]
[1773193680543,1.24780409,85.935,85.901,11.64130801]
[1773193680544,1.24780409,85.929,85.903,1.67064635]
[1773193681038,1.24766849,85.943,85.903,1.67064635]
[1773193681217,7.71210839,85.972,85.921,1.67064635]
[1773193681218,1.24766849,85.949,85.921,1.67064635]
[1773193681424,1.24766849,85.968,85.931,1.67064635]
[1773193681642,1.24766849,85.968,85.941,1.67064635]
[1773193682137,1.24766849,85.968,85.943,1.67064635]
[1773193682725,1.24740193,85.966,85.943,1.67064635]
[1773193683624,0.2,85.97,85.943,1.67064635]
[1773193684233,1.24727095,85.968,85.945,1.67064635]
[1773193684437,1.24727095,85.968,85.941,1.67064635]
[1773193686441,0.2,85.97,85.943,1.67064635]
[1773193687040,11.63209994,85.969,85.943,1.67064635]
[1773193687240,1.44688695,85.97,85.943,1.67064635]
[1773193687629,1.24676187,85.968,85.943,1.67064635]
[1773193689149,11.63209994,85.969,85.945,1.67064635]
[1773193689945,12.87861597,85.969,85.945,1.67064635]
[1773193690640,1.24639522,85.968,85.946,11.6352128]
[1773193690838,1.24639522,85.968,85.947,1.67064635]
[1773193692043,1.24639522,85.968,85.949,1.67064635]
[1773193694253,0.2,85.97,85.951,1.67064635]
[1773193694934,7.71210839,85.972,85.95,44.89054154]
[1773193694935,7.71210839,85.972,85.961,1.67064635]
[1773193696835,7.71210839,85.972,85.958,11.63357383]
[1773193697148,1.44569894,85.971,85.951,1.67064635]
[1773193697553,1.44569894,85.97,85.946,1.67064635]
[1773193698543,1.44569894,85.97,85.941,11.63588973]
[1773193698544,1.44547737,85.969,85.942,1.67064635]
[1773193698743,1.44547737,85.967,85.943,11.63561895]
[1773193698953,1.44547737,85.967,85.944,1.67064635]
[1773193700258,1.44547737,85.967,85.943,11.63561895]
[1773193701048,11.63223525,85.968,85.943,11.63561895]
[1773193701049,1.44511757,85.965,85.943,11.63561895]
[1773193701942,1.44511757,85.965,85.939,13.26773142]
[1773193702140,1.44497592,85.949,85.892,1.63157111]
[1773193702343,1.44497592,85.929,85.893,1.63157111]
[1773193703036,1.4448359,85.927,85.895,1.63157111]
[1773193705060,1.4448359,85.927,85.897,1.63157111]
[1773193706254,1.4448359,85.927,85.899,1.63157111]
[1773193709164,1.4448359,85.927,85.9,40.74505237]
[1773193709357,1.44402892,85.938,85.901,1.63157111]
[1773193711466,1.44377212,85.929,85.903,1.63157111]
[1773193714367,1.44377212,85.929,85.905,1.63157111]
[1773193716957,1.44303638,85.928,85.905,1.63157111]
[1773193719260,1.4426872,85.926,85.905,1.63157111]
[1773193720955,1.4426872,85.926,85.907,1.59446168]
[1773193721366,1.44246104,85.931,85.907,1.59446168]
[1773193721675,1.44246104,85.929,85.902,1.59446168]
[1773193721876,1.44234991,85.954,85.902,1.59446168]
[1773193722076,1.44234991,85.929,85.902,1.59446168]
[1773193723877,1.44213146,85.927,85.904,1.59446168]
[1773193727079,1.44213146,85.927,85.905,11.64076596]
[1773193727273,1.44213146,85.927,85.906,1.59446168]
[1773193728180,1.44170941,85.935,85.906,1.59446168]
[1773193730473,1.44140543,85.933,85.908,1.74772535]
[1773193731978,13.07660588,85.945,85.908,1.74772535]
[1773193732210,1.44120855,85.944,85.911,1.74772535]
[1773193732493,1.44120855,85.944,85.913,1.74772535]
[1773193734192,1.44101617,85.959,85.921,1.74772535]
[1773193734382,1.44101617,85.958,85.921,1.74772535]
[1773193734770,1.44092163,85.949,85.923,1.74772535]
[1773193736792,1.44092163,85.949,85.924,11.63819189]
[1773193737189,1.44092163,85.949,85.925,1.74772535]
[1773193738793,1.44055422,85.959,85.927,1.74772535]
[1773193739674,1.44046498,85.957,85.927,1.74772535]
[1773193739875,1.44046498,85.949,85.927,1.74772535]
[1773193740797,1.44046498,85.949,85.929,1.74772535]
[1773193740979,1.44037678,85.967,85.931,1.74772535]
[1773193743477,15.78959636,85.97,85.933,1.74772535]
[1773193743884,11.63205644,85.97,85.941,1.74772535]
[1773193744291,13.07217463,85.97,85.941,1.74772535]
[1773193744488,13.07217463,85.97,85.943,1.74772535]
[1773193744695,1.44003397,85.969,85.943,1.74772535]
[1773193745693,1.43995071,85.977,85.943,1.74772535]
[1773193747507,1.43978706,85.975,85.945,1.74772535]
[1773193748026,4.15753992,85.97,85.945,1.74772535]
[1773193748312,1.43978706,85.971,85.945,1.74772535]
[1773193748803,1.43978706,85.971,85.947,1.74772535]
[1773193750003,11.63196463,85.97,85.947,1.74772535]
[1773193750215,1.43962714,85.969,85.947,1.74772535]
[1773193750400,1.43962714,85.959,85.932,1.74772535]
[1773193751109,1.43962714,85.959,85.934,1.74772535]
[1773193751604,1.43954856,85.957,85.934,1.74772535]
[1773193752501,4.15753992,85.97,85.934,1.74772535]
[1773193752698,1.43939409,85.969,85.934,1.74772535]
[1773193753099,4.15753992,85.96,85.936,1.74772535]
[1773193753298,1.43939409,85.959,85.936,1.74772535]
[1773193757591,1.43939409,85.959,85.938,1.74772535]
[1773193757997,1.43902318,85.965,85.938,1.74772535]
[1773193760808,1.43902318,85.965,85.94,1.71344015]
[1773193763809,1.43902318,85.965,85.942,1.71344015]
[1773193766304,1.43840721,85.971,85.944,1.71344015]
[1773193766698,1.43834264,85.97,85.944,1.71344015]
[1773193767718,1.43827881,85.968,85.946,1.71344015]
[1773193770016,1.43815334,85.959,85.937,13.34987148]
[1773193770216,1.43815334,85.959,85.938,1.71344015]
[1773193770997,11.63237056,85.967,85.938,1.71344015]
[1773193771196,1.43809169,85.966,85.938,1.71344015]
[1773193774719,1.43809169,85.966,85.94,1.71344015]
[1773193776521,1.43809169,85.966,85.941,1.69155216]
[1773193776716,1.43809169,85.966,85.939,40.72656186]
[1773193776717,1.43809169,85.966,85.943,1.69155216]
[1773193778910,1.43809169,85.966,85.945,1.69155216]
[1773193781023,0.2,85.98,85.947,1.69155216]
[1773193781222,1.43745848,85.979,85.947,1.69155216]
[1773193782820,1.43735175,85.977,85.949,1.69155216]
[1773193783124,1.43735175,85.977,85.944,1.69155216]
[1773193784829,1.43724746,85.975,85.946,1.69155216]
[1773193786817,1.43714554,85.979,85.951,1.69155216]
[1773193787925,0.2,85.99,85.961,1.69155216]
[1773193788125,0.2,85.99,85.952,11.63440059]
[1773193788126,0.2,85.99,85.971,1.69155216]
[1773193788908,0.2,86.0,85.981,1.69155216]
[1773193789631,11.62674495,86.009,85.981,1.74233811]
[1773193789632,1.43694865,86.008,85.981,1.74233811]
[1773193790116,1.43694865,86.006,85.981,1.74233811]
[1773193792217,1.43685357,86.004,85.981,1.74233811]
[1773193792417,1.43685357,86.004,85.978,11.63077879]
[1773193792614,1.60447854,85.999,85.96,4.15974221]
[1773193792831,1.60447854,85.999,85.961,11.63318248]
[1773193793527,1.60447854,85.989,85.961,11.63318248]
[1773193793736,1.60447854,85.989,85.951,11.63453595]
[1773193794126,1.60447854,85.989,85.951,40.72087584]
[1773193794430,1.60447854,85.995,85.96,4.15974221]
[1773193794613,1.60447854,85.995,85.961,1.74233811]
[1773193796932,1.60447854,85.993,85.963,1.74233811]
[1773193799325,1.60447854,85.993,85.965,1.74233811]
[1773193800427,1.60447854,85.998,85.966,11.63250587]
[1773193800632,0.2,86.01,85.966,11.63250587]
[1773193800633,1.60447854,86.008,85.971,1.74233811]
[1773193800834,62.27263064,86.04,86.001,1.74233811]
[1773193800835,1.60447854,86.028,86.001,1.74233811]
[1773193801536,7.57074047,86.033,86.011,1.74233811]
[1773193802234,2.01625503,86.033,86.021,1.74233811]
[1773193803237,1.60447854,86.031,86.01,4.15974221]
[1773193803436,2.01625503,86.033,86.011,1.74233811]
[1773193804832,2.01625503,86.033,86.013,1.74233811]
[1773193805037,2.01625503,86.033,86.021,1.74233811]
[1773193806437,1.60447854,86.032,86.011,11.62641987]
[1773193806742,2.01625503,86.033,86.011,11.62641987]
[1773193807421,1.60447854,86.047,86.02,4.15974221]
[1773193807620,0.2,86.05,86.02,4.15974221]
[1773193807621,1.60447854,86.046,86.02,4.15974221]
[1773193808339,1.60447854,86.046,86.011,40.69246956]
[1773193808549,1.60447854,86.045,86.012,1.74233811]
[1773193809139,1.60447854,86.045,86.021,1.74233811]
[1773193809645,0.2,86.05,86.021,1.74233811]
[1773193809646,1.60447854,86.043,86.021,1.74233811]
[1773193810629,1.60447854,86.043,86.023,1.74233811]
[1773193813540,11.6218103,86.046,86.025,1.74233811]
[1773193817049,1.60447854,86.045,86.025,1.74233811]
[1773193818555,1.60447854,86.043,86.017,1.74233811]
[1773193819756,1e-08,86.05,86.031,1.64743402]
[1773193821636,1e-08,86.05,86.03,4.15111388]
[1773193821637,1.62055034,86.071,86.041,1.64743402]
[1773193821854,18.58375232,86.14,86.032,40.68253672]
[1773193821855,29.03513225,86.103,86.051,1.64743402]
[1773193822037,11.61588588,86.089,86.061,1.64743402]
[1773193823240,0.2,86.12,86.081,1.64743402]
[1773193823449,11.61183943,86.119,86.081,1.64743402]
[1773193823642,40.641438,86.119,86.082,1.64743402]
[1773193824143,1.62055034,86.118,86.082,1.64743402]
[1773193825361,1e-08,86.12,86.113,1.56631251]
[1773193825546,1e-08,86.12,86.11,4.15111388]
[1773193825547,2.54592928,86.146,86.11,4.15111388]
[1773193825746,2.54592928,86.146,86.12,4.15111388]
[1773193826262,11.60842078,86.145,86.12,4.15111388]
[1773193827062,2.54592928,86.146,86.13,4.15111388]
[1773193827258,0.2,86.15,86.13,4.15111388]
[1773193827466,3.01377408,86.16,86.14,4.15111388]
[1773193827773,3.01377408,86.16,86.141,11.60887382]
[1773193828163,2.54592928,86.159,86.141,11.60887382]
[1773193828669,1e-08,86.16,86.141,40.63105837]
[1773193829063,1e-08,86.16,86.15,4.15111388]
[1773193829241,1e-08,86.16,86.141,11.60887382]
[1773193829873,1e-08,86.16,86.14,4.15111388]
[1773193830156,1e-08,86.16,86.141,11.60887382]
[1773193830763,1e-08,86.16,86.15,4.15111388]
[1773193831564,0.2,86.17,86.15,4.15111388]
[1773193831746,2.54592928,86.193,86.141,40.63105837]
[1773193831947,2.54592928,86.193,86.17,4.15111388]
[1773193832363,2.54592928,86.201,86.17,4.15111388]
[1773193832564,28.99562736,86.22,86.19,4.15111388]
[1773193832565,11.59833693,86.22,86.19,4.15111388]
[1773193832771,15.74945081,86.22,86.181,0.98152933]
[1773193832979,15.74945081,86.22,86.19,4.15111388]
[1773193833268,15.74945081,86.22,86.181,0.98152933]
[1773193833469,15.74945081,86.22,86.16,4.15111388]
[1773193833470,3.69383402,86.228,86.191,0.98281578]
[1773193833654,4.15111388,86.23,86.191,0.98281578]
[1773193833963,4.15111388,86.22,86.184,0.98408745]
[1773193834165,4.15111388,86.22,86.185,11.60294714]
[1773193834672,1.62055034,86.219,86.185,11.60294714]
[1773193834864,1.62055034,86.219,86.18,4.15111388]
[1773193834865,1.62055034,86.219,86.18,15.75469941]
[1773193835066,1.62055034,86.209,86.18,15.75469941]
[1773193835372,1.62055034,86.209,86.18,16.74004392]
[1773193836356,1.62413982,86.217,86.181,0.98781548]
[1773193836954,4.15111388,86.2,86.174,0.98902972]
[1773193837164,1.62413982,86.202,86.174,0.98902972]
[1773193838365,1.62413982,86.202,86.136,92.87591688]
[1773193838366,1.62413982,86.179,86.141,0.99049108]
[1773193838871,1.62413982,86.169,86.131,0.99193565]
[1773193840364,1.62413982,86.169,86.141,0.99336363]
[1773193841766,13.22925235,86.169,86.141,0.99336363]
[1773193841976,1.62413982,86.168,86.141,0.99336363]
[1773193842753,1.62413982,86.168,86.142,11.60873905]
[1773193842978,1.62413982,86.168,86.143,0.99754992]
[1773193843173,1.62413982,86.175,86.143,0.99754992]
[1773193844575,1.62413982,86.198,86.161,0.99891342]
[1773193844969,1.62413982,86.196,86.162,11.60604442]
[1773193845579,1.62413982,86.189,86.152,11.60739158]
[1773193845776,4.15111388,86.18,86.152,11.60739158]
[1773193845970,40.60466141,86.197,86.127,1.00159361]
[1773193845971,1.62413982,86.159,86.127,1.00159361]
[1773193846376,1.62413982,86.149,86.118,1.00159361]
[1773193846966,1.62413982,86.147,86.119,11.61183943]
[1773193850687,1.6058463,86.139,86.111,11.61291821]
[1773193852988,1.6058463,86.138,86.107,1.01171603]
[1773193853976,11.60927169,86.139,86.081,1.01291682]
[1773193853977,1.6058463,86.119,86.081,1.01291682]
[1773193854184,1.6058463,86.119,86.091,1.01291682]
[1773193854486,1.6058463,86.138,86.101,1.01291682]
[1773193854885,4.15111388,86.13,86.101,1.01291682]
[1773193855185,4.15111388,86.13,86.103,1.01410381]
[1773193856182,5.75696018,86.13,86.103,1.01410381]
[1773193856384,1.6058463,86.13,86.104,11.6138623]
[1773193856585,1.6058463,86.13,86.104,12.62913947]
[1773193856784,1.6058463,86.141,86.111,1.01643705]
[1773193857388,1.6058463,86.139,86.111,1.01643705]
[1773193857891,13.21498966,86.139,86.112,12.63036696]
[1773193859195,13.21498966,86.139,86.113,1.018717]
[1773193859687,1.6058463,86.138,86.113,1.018717]
[1773193859888,11.60941291,86.137,86.113,1.018717]
[1773193860282,11.60941291,86.137,86.114,11.61251364]
[1773193860983,11.60941291,86.137,86.114,12.63345851]
[1773193861981,1.6058463,86.134,86.101,1.02203966]
[1773193862184,1.6058463,86.129,86.093,1.02203966]
[1773193862775,11.60968247,86.135,86.101,1.02312186]
[1773193862976,13.21495312,86.14,86.111,1.02312186]
[1773193863281,1.6058463,86.139,86.111,1.02312186]
[1773193865191,13.21512443,86.138,86.112,11.61278335]
[1773193865686,11.60927813,86.138,86.112,11.61278335]
[1773193865894,13.21512443,86.138,86.112,12.63907783]
[1773193866697,1.6058463,86.137,86.112,12.63907783]
[1773193868684,1.6058463,86.129,86.084,1.02935902]
[1773193868876,1.6058463,86.129,86.08,4.15111388]
[1773193868877,1.6058463,86.119,86.086,1.02935902]
[1773193869276,4.15111388,86.11,86.081,12.64629369]
[1773193869477,1.6058463,86.109,86.081,12.64629369]
[1773193869677,1.6058463,86.109,86.082,1.03035716]
[1773193869878,1.6058463,86.099,86.077,11.61746229]
[1773193870878,1.6058463,86.099,86.077,12.64880612]
[1773193871077,1.6058463,86.099,86.078,1.03134383]
[1773193871497,1.6058463,86.122,86.091,1.03134383]
[1773193871694,1.6058463,86.129,86.101,1.03231917]
[1773193872899,1.6058463,86.129,86.103,1.03328331]
[1773193874882,1.6058463,86.129,86.104,11.6138623]
[1773193875195,1.6058463,86.129,86.104,12.64904079]
[1773193875381,1.6058463,86.129,86.105,1.03517849]
[1773193877101,1.6058463,86.129,86.106,11.61359254]
[1773193877796,13.21641939,86.129,86.106,11.61359254]
[1773193878002,1.6058463,86.128,86.091,1.03794041]
[1773193879000,1.6058463,86.128,86.093,1.03883998]
[1773193879195,1.6058463,86.126,86.095,1.03883998]
[1773193880697,1.6058463,86.126,86.101,1.04147717]
[1773193880895,1.64603478,86.133,86.101,1.04147717]
[1773193882794,1.64603478,86.133,86.103,1.04318521]
[1773193883002,1.64603478,86.142,86.103,1.04318521]
[1773193883501,1.64603478,86.142,86.111,1.04318521]
[1773193883808,11.60914336,86.139,86.111,1.04318521]
[1773193883987,1.64603478,86.138,86.111,1.04318521]
[1773193886998,1.64603478,86.136,86.113,1.04648513]
[1773193887680,1.64603478,86.136,86.112,11.61278335]
[1773193888076,1.64603478,86.136,86.082,61.2]
[1773193888077,1.64603478,86.129,86.083,1.04728655]
[1773193888301,1.64603478,86.129,86.09,4.14306344]
[1773193888599,1.64603478,86.129,86.091,1.04728655]
[1773193888796,1.64603478,86.129,86.101,1.04807878]
[1773193889828,1.64603478,86.129,86.102,11.61413207]
[1773193890185,1.64603478,86.129,86.103,1.0488619]
[1773193892091,1.64603478,86.129,86.105,1.05040126]
[1773193892292,1.64603478,86.138,86.105,1.05040126]
[1773193892492,1.64603478,86.138,86.111,1.05040126]
[1773193894813,1.64603478,86.138,86.112,11.61278335]
[1773193895105,1.64603478,86.136,86.113,1.05264464]
[1773193895612,1.64603478,86.136,86.107,11.61332362]
[1773193896220,1.64603478,86.136,86.11,4.14306344]
[1773193896391,1.78018424,86.15,86.12,4.14306344]
[1773193896592,1.78018424,86.149,86.113,1.0548116]
[1773193897113,1.78018424,86.147,86.115,1.0548116]
[1773193897695,1.78018424,86.147,86.114,11.61251364]
[1773193898891,1.78018424,86.147,86.113,1.05551739]
[1773193899088,1.78018424,86.129,86.091,1.05621507]
[1773193899287,1.78018424,86.129,86.053,151.06968959]
[1773193899288,1.78018424,86.135,86.111,1.05621507]
[1773193902018,1.78018424,86.135,86.112,40.64474172]
[1773193904709,1.78018424,86.135,86.112,11.61278335]
[1773193907121,1.78018424,86.141,86.113,1.06151565]
[1773193907317,1.78018424,86.153,86.121,1.06151565]
[1773193909832,11.60739158,86.152,86.122,11.61143494]
[1773193910125,1.77610741,86.151,86.122,11.61143494]
[1773193910920,11.60766105,86.15,86.122,11.61143494]
[1773193911232,1.77610741,86.139,86.102,30.09971612]
[1773193911400,1.77610741,86.139,86.103,11.61399718]
[1773193912319,1.77610741,86.139,86.104,1.06518168]
[1773193913628,1.77610741,86.139,86.11,4.14306344]
[1773193914321,1.77610741,86.139,86.11,5.20941175]
[1773193914528,1.77610741,86.139,86.111,1.06634831]
[1773193915627,1.77610741,86.137,86.112,11.61278335]
[1773193918400,1.77610741,86.135,86.112,11.61278335]
[1773193920332,1.77610741,86.119,86.083,1.06969071]
[1773193920515,1.77610741,86.119,86.085,1.06969071]
[1773193921420,1.77610741,86.099,86.061,1.0702256]
[1773193922410,1.77610741,86.089,86.062,11.6195301]
[1773193922612,1.77610741,86.079,86.05,0.2]
[1773193922829,1.77610741,86.089,86.06,4.14306344]
[1773193923010,1.77610741,86.109,86.081,1.07127702]
[1773193923721,1.77610741,86.099,86.065,1.07179369]
[1773193923914,1.77610741,86.099,86.07,4.14306344]
[1773193924509,1.77610741,86.099,86.071,11.61831511]
[1773193929724,4.14306344,86.12,86.081,1.07477143]
[1773193929923,1.77610741,86.119,86.081,1.07477143]
[1773193930812,1.77610741,86.119,86.082,11.61683046]
[1773193931014,1.77610741,86.117,86.083,1.07524797]
[1773193934324,1.77610741,86.115,86.084,12.69320553]
[1773193937021,1.77610741,86.115,86.086,11.61629068]
[1773193937326,1.77610741,86.115,86.087,1.07799439]
[1773193938632,1.77610741,86.115,86.09,4.14306344]
[1773193938822,1.77610741,86.115,86.091,1.07886837]
[1773193939223,1.77610741,86.12,86.1,4.14306344]
[1773193939431,1.79177356,86.138,86.101,1.07886837]
[1773193939743,1.79177356,86.138,86.111,1.07972238]
[1773193940330,1.79177356,86.138,86.088,40.65607284]
[1773193940331,1.79177356,86.138,86.12,4.1424507]
[1773193940730,1.79177356,86.138,86.117,11.6121091]
[1773193942042,1.79177356,86.136,86.112,1.08055689]
[1773193944524,1.79177356,86.136,86.113,11.61264849]
[1773193944933,1.79177356,86.136,86.113,12.69442155]
[1773193945237,1.79177356,86.136,86.114,1.08177306]
[1773193948640,1.79177356,86.136,86.115,11.61237879]
[1773193950622,11.60968247,86.135,86.116,1.08408252]
[1773193950828,1.79177356,86.134,86.116,1.08408252]
[1773193951134,1.79177356,86.134,86.111,12.69700073]
[1773193952141,1.79177356,86.134,86.112,1.0844521]
[1773193953850,1.79177356,86.14,86.114,1.08517858]
[1773193956053,1.79177356,86.14,86.115,11.61237879]
[1773193956734,1.79177356,86.14,86.116,1.08658215]
[1773193958454,1.76501058,86.138,86.111,11.61291821]
[1773193959855,1.76501058,86.136,86.11,4.1424507]
[1773193961754,1.76501058,86.136,86.111,11.61291821]
[1773193962653,1.76501058,86.136,86.112,1.08856956]
[1773193965056,1.76501058,86.136,86.113,11.61264849]
[1773193967043,1.76501058,86.136,86.113,12.70246848]
[1773193968855,1.76501058,86.136,86.115,11.61237879]
[1773193971354,1.69602705,86.146,86.121,1.09130393]
[1773193972056,1.69602705,86.146,86.12,4.1424507]
[1773193972379,1.69602705,86.146,86.111,40.64521373]
[1773193972855,1.69602705,86.146,86.112,1.09187392]
[1773193973941,11.60833478,86.145,86.112,1.09187392]
[1773193974147,1.69602705,86.144,86.113,11.61264849]
[1773193976642,1.69602705,86.139,86.103,1.09297514]
[1773193977960,1.69602705,86.137,86.104,11.6138623]
[1773193978344,1.69602705,86.137,86.104,12.70710488]